Workbook

Sheet LUKUKAUSI
B1: LUKUJÄRJESTYS
B2: SYYSLUKUKAUSI
C3: ALOITUSKELLONAIKA | D3: AIKAVÄLI | F3: VUOSI
C4: 09:00:00 | D4: 60 | E4: (minuutteina)
B5: KELLONAIKA | C5: MA | D5: TI | E5: KE | F5: TO | G5: PE | H5: LA | I5: SU
B6: =Aloitusaika+TIME(0,(ROW(A1)-1)*Aikaväli,0) -> 09:00:00 | C6: Aamiainen | D6: Aamiainen | E6: Aamiainen | F6: Aamiainen | G6: Aamiainen
B7: 10:00:00 | C7: Taloushallinto: rakennus B, sali 256
B8: 11:00:00 | F8: Fysiikka: labrat rak. J, sali 309
B9: 12:00:00
B10: 13:00:00
B11: 14:00:00
B12: 15:00:00
B13: 16:00:00
B14: 17:00:00
B15: 18:00:00
B16: 19:00:00
B17: 20:00:00
B18: 21:00:00
B19: 22:00:00
B20: 23:00:00
B21: 1
B22: 1.041666667
B23: 1.083333333
B24: 1.125
B25: 1.166666667
B26: 1.208333333
B27: 1.25
B28: 1.291666667
B29: 1.333333333

Sheet OPINTOPISTEET
B1: OPPILAITOS
B2: OPINTOPISTESUUNNITELMA
B3: Tutkinnon nimi | C3: =Vuosi -> VUOSI
B4: YLEINEN EDISTYMINEN | D4: YLEINEN EDISTYMINEN
B5: =AVERAGE(Kurssit[ARVOSANA]) -> 3.5 | C5: =IFERROR(TEXT(AVERAGEIF(Kurssit[SUORITETTU],"Kyllä",Kurssit[ARVOSANA]),"0,00"),"0.00")&" Tämänhetkinen keskiarvo" -> 3,50 Tämänhetkinen keskiarvo | D5: =COUNTIF(Kurssit[SUORITETTU],"Kyllä")/COUNTA(Kurssit[KURSSIN NIMI]) -> 0.6666666667 | E5: =TEXT(COUNTIF(Kurssit[SUORITETTU],"Kyllä")/COUNTA(Kurssit[KURSSIN NIMI]),"0%")&" suoritettu" -> 67% suoritettu
B6: Huomautus: alla olevan taulukon opintopisteet määräytyvät automaattisesti jäljempänä olevan kurssitaulukon tietojen perusteella
B7: PAKOLLINEN KOKONAISUUS | C7: OPINTOPISTEET YHTEENSÄ | D7: SUORITETTU | E7: SUORITTAMATTA
B8: Pääaine | C8: =IF(SUMIF(Kurssit[PAKOLLINEN KOKONAISUUS],OPINTOPISTEET!$B8,Kurssit[OPINTOPISTEET])=0,"0",SUMIF(Kurssit[PAKOLLINEN KOKONAISUUS],OPINTOPISTEET!$B8,Kurssit[OPINTOPISTEET])) -> 4 | D8: =SUMIFS(Kurssit[OPINTOPISTEET],Kurssit[PAKOLLINEN KOKONAISUUS],OPINTOPISTEET!$B8,Kurssit[SUORITETTU],"Kyllä") -> 4 | E8: =SUMIF(Kurssit[PAKOLLINEN KOKONAISUUS],OPINTOPISTEET!$B8,Kurssit[OPINTOPISTEET])-SUMIFS(Kurssit[OPINTOPISTEET],Kurssit[PAKOLLINEN KOKONAISUUS],OPINTOPISTEET!$B8,Kurssit[SUORITETTU],"Kyllä") -> 0
B9: Sivuaine | C9: =IF(SUMIF(Kurssit[PAKOLLINEN KOKONAISUUS],OPINTOPISTEET!$B9,Kurssit[OPINTOPISTEET])=0,"0",SUMIF(Kurssit[PAKOLLINEN KOKONAISUUS],OPINTOPISTEET!$B9,Kurssit[OPINTOPISTEET])) -> 3 | D9: =SUMIFS(Kurssit[OPINTOPISTEET],Kurssit[PAKOLLINEN KOKONAISUUS],OPINTOPISTEET!$B9,Kurssit[SUORITETTU],"Kyllä") -> 0 | E9: =SUMIF(Kurssit[PAKOLLINEN KOKONAISUUS],OPINTOPISTEET!$B9,Kurssit[OPINTOPISTEET])-SUMIFS(Kurssit[OPINTOPISTEET],Kurssit[PAKOLLINEN KOKONAISUUS],OPINTOPISTEET!$B9,Kurssit[SUORITETTU],"Kyllä") -> 3
B10: Valinnaisaine | C10: =IF(SUMIF(Kurssit[PAKOLLINEN KOKONAISUUS],OPINTOPISTEET!$B10,Kurssit[OPINTOPISTEET])=0,"0",SUMIF(Kurssit[PAKOLLINEN KOKONAISUUS],OPINTOPISTEET!$B10,Kurssit[OPINTOPISTEET])) -> 2 | D10: =SUMIFS(Kurssit[OPINTOPISTEET],Kurssit[PAKOLLINEN KOKONAISUUS],OPINTOPISTEET!$B10,Kurssit[SUORITETTU],"Kyllä") -> 2 | E10: =SUMIF(Kurssit[PAKOLLINEN KOKONAISUUS],OPINTOPISTEET!$B10,Kurssit[OPINTOPISTEET])-SUMIFS(Kurssit[OPINTOPISTEET],Kurssit[PAKOLLINEN KOKONAISUUS],OPINTOPISTEET!$B10,Kurssit[SUORITETTU],"Kyllä") -> 0
B11: Vapaat opinnot | C11: =IF(SUMIF(Kurssit[PAKOLLINEN KOKONAISUUS],OPINTOPISTEET!$B11,Kurssit[OPINTOPISTEET])=0,"0",SUMIF(Kurssit[PAKOLLINEN KOKONAISUUS],OPINTOPISTEET!$B11,Kurssit[OPINTOPISTEET])) -> 0 | D11: =SUMIFS(Kurssit[OPINTOPISTEET],Kurssit[PAKOLLINEN KOKONAISUUS],OPINTOPISTEET!$B11,Kurssit[SUORITETTU],"Kyllä") -> 0 | E11: =SUMIF(Kurssit[PAKOLLINEN KOKONAISUUS],OPINTOPISTEET!$B11,Kurssit[OPINTOPISTEET])-SUMIFS(Kurssit[OPINTOPISTEET],Kurssit[PAKOLLINEN KOKONAISUUS],OPINTOPISTEET!$B11,Kurssit[SUORITETTU],"Kyllä") -> 0
B12: Yhteensä | C12: =SUBTOTAL(109,OPINTOPISTEET!$C$8:$C$11) -> 9 | D12: =SUBTOTAL(109,OPINTOPISTEET!$D$8:$D$11) -> 6 | E12: =SUBTOTAL(109,OPINTOPISTEET!$E$8:$E$11) -> 3
B13: Kurssit
B14: KURSSIN NIMI | C14: KURSSIN NUMERO | D14: PAKOLLINEN KOKONAISUUS | E14: OPINTOPISTEET | F14: SUORITETTU | G14: ARVOSANA | H14: LUKUKAUSI
B15: Kurssi 1 | C15: Numero | D15: Pääaine | E15: 4 | F15: Kyllä | G15: 4.0 | H15: Lukukausi 1
B16: Kurssi 2 | C16: Numero | D16: Sivuaine | E16: 3 | F16: Ei | H16: Lukukausi 1
B17: Kurssi 3 | C17: Numero | D17: Valinnaisaine | E17: 2 | F17: Kyllä | G17: 3.0 | H17: Lukukausi 1

Sheet BUDJETTI
B1: =Oppilaitos -> OPPILAITOS
B2: BUDJETIN SEURANTA
B3: Oma budjetti | C3: =Vuosi -> VUOSI
B4: KÄYTETTYJEN TULOJEN PROSENTTIOSUUS
B5: =NETTOMENOT_KUUKAUDESSA/NETTOTULOT_KUUKAUDESSA -> 1 €
B6: =B5 -> 0.7454545455
B7: NETTOTULOT KUUKAUDESSA | C7: NETTOMENOT KUUKAUDESSA | D7: SALDO
B8: =C10 -> 2,750 € | C8: ='NETTOMENOT KUUKAUDESSA'!C4+'LUKUKAUDEN MENOT'!D4 -> 2,050 € | D8: =NETTOTULOT_KUUKAUDESSA-NETTOMENOT_KUUKAUDESSA -> 700 €
B9: Kuukausia lukukaudessa | C9: 4
B10: KUUKAUSITULOT | C10: =SUM(Kuukausitulot[SUMMA]) -> 2,750 €
B11: KOHDE | C11: SUMMA
B12: Kiinteät tulot | C12: 1,500 €
B13: Tuet | C13: 500 €
B14: Lainat | C14: 500 €
B15: Muut tulot | C15: 250 €

Sheet NETTOMENOT KUUKAUDESSA
B1: =Oppilaitos -> OPPILAITOS
B2: BUDJETIN SEURANTA
B3: Kuukauden menot | C3: =Vuosi -> VUOSI
B4: KUUKAUDEN MENOT | C4: =SUM(KuukausiMenot[SUMMA]) -> 1,675 €
B5: KOHDE | C5: SUMMA
B6: Vuokra | C6: 300 €
B7: Lämmitys, sähkö ja vesi | C7: 50 €
B8: Matkapuhelin | C8: 75 €
B9: Ruokaostokset | C9: 250 €
B10: Autoon liittyvät menot | C10: 50 €
B11: Opintolaina | C11: 500 €
B12: Luottokortit | C12: 275 €
B13: Vakuutukset | C13: 125 €
B14: Vapaa-aika | C14: 50 €
B15: Sekalaiset | C15: 0 €

Sheet LUKUKAUDEN MENOT
B1: =Oppilaitos -> OPPILAITOS
B2: BUDJETIN SEURANTA
B3: Lukukauden menot | C3: =Vuosi -> VUOSI
B4: LUKUKAUDEN MENOT (yhteensä/kk) | C4: =SUM(LukukaudenMenot[SUMMA]) -> 1,500 € | D4: =SUM(LukukaudenMenot[KUUKAUDESSA]) -> 375 €
B5: KOHDE | C5: SUMMA | D5: KUUKAUDESSA
B6: Lukukausimaksut | C6: 750 € | D6: =LukukaudenMenot[[#This Row],[SUMMA]]/Kuukautta_lukukaudessa -> 188 €
B7: Opintomateriaalimaksut | C7: 250 € | D7: =LukukaudenMenot[[#This Row],[SUMMA]]/Kuukautta_lukukaudessa -> 63 €
B8: Kirjat | C8: 500 € | D8: =LukukaudenMenot[[#This Row],[SUMMA]]/Kuukautta_lukukaudessa -> 125 €
B9: Vuokratakuu | C9: 0 € | D9: =LukukaudenMenot[[#This Row],[SUMMA]]/Kuukautta_lukukaudessa -> 0 €
B10: Bussi- ja junaliput | C10: 0 € | D10: =LukukaudenMenot[[#This Row],[SUMMA]]/Kuukautta_lukukaudessa -> 0 €
B11: Muut maksut | C11: 0 € | D11: =LukukaudenMenot[[#This Row],[SUMMA]]/Kuukautta_lukukaudessa -> 0 €

Sheet KIRJAT
B1: =Oppilaitos -> OPPILAITOS
B2: KIRJOJEN SEURANTA
B3: Kirjaluettelo
B4: NIMI | C4: TEKIJÄ | D4: KURSSI | E4: HANKINTAPAIKKA | F4: ISBN | G4: MUISTIINPANOT
B5: Kirjan nimi | C5: Tekijä | D5: Kurssi | E5: Sijainti | F5: Numero
B6: Kirjan nimi | C6: Tekijä | D6: Kurssi | E6: Sijainti | F6: Numero
B7: Kirjan nimi | C7: Tekijä | D7: Kurssi | E7: Sijainti | F7: Numero
